Cogmind - Beta 16 @@@ ROGUE MODE // 2025.10.27 @ 13:16:36 Player: Ae Result: Destroyed by Y-45 Defender with Heavy Assault Rifle Performance ------------- Evolutions (0) 0 Regions Visited (4) 800 Robots Destroyed (39) 195 Value Destroyed (705) 705 Prototype IDs (0) 0 Alien Tech Used (0) 0 Bonus (21) 21 TOTAL SCORE: 1721 Bonus ------- Follower Combat Kills 21 Cogmind --------- Core Integrity 0/250 Matter 297/300 Energy 160/160 System Corruption 0% Temperature Cool (7) Movement Rolling (155) Ox5 Location -9/Recycling Parts ------- > --- POWER (1) -------- Light Nuclear Core > --- PROPULSION (2) --- Light Treads Wheel > --- UTILITY (2) ------ High-capacity Storage Unit Seismic Detector > --- WEAPON (2) ------- Light Assault Rifle Subdweller Machine Gun > --- INVENTORY (20) --- Subdweller Power Source Wheel Subdweller Monowheel Scrap Suit Improved Heat Sink Structural Scanner Machine Analyzer Subdweller Optics Experimental Sensor Array Signal Interpreter Improved Terrain Scanner Light Armor Plating Light Armor Plating Hacking Suite Grenade Launcher Subdweller Shrapnel Launcher Datajack Hammer Peak State ------------ > --- POWER ------------ Light Nuclear Core > --- PROPULSION ------- Light Treads Wheel > --- UTILITY ---------- High-capacity Storage Unit Light Armor Plating > --- WEAPON ----------- Light Assault Rifle Subdweller Machine Gun > --- INVENTORY -------- Wheel Scrap Suit Improved Heat Sink Structural Scanner Machine Analyzer Subdweller Optics Experimental Sensor Array Signal Interpreter Improved Terrain Scanner Seismic Detector Light Armor Plating Hacking Suite Grenade Launcher Subdweller Shrapnel Launcher Datajack Hammer [Rating: 14] Favorites ----------- Power Light Ion Engine Engine Light Ion Engine Power Core Light Nuclear Core Propulsion Light Treads Treads Light Treads Wheel Compact Wheel Utility High-capacity Storage Unit Device Seismic Detector Storage High-capacity Storage Unit Protection Core Shielding Weapon Light Assault Rifle Energy Gun Particle Gun Ballistic Gun Light Assault Rifle Launcher Grenade Launcher Impact Weapon Hammer Build | -11 -10 -10 -10 -9 ------- Run | Yrd Mat Min Sub Rec Slots Evolved . | . . . . . Power . | . . . . . Propulsion . | . . . . . Utility . | . . . . . Weapon . | . . . . . Parts Attached 24 | 7 6 6 5 . Power 4 | 1 1 1 1 . Engine 3 | 1 1 1 . . Core 1 | . . . 1 . Reactor . | . . . . . Propulsion 6 | 2 1 1 2 . Treads 2 | . 1 1 . . Leg . | . . . . . Wheel 4 | 2 . . 2 . Hover . | . . . . . Flight . | . . . . . Utility 6 | 2 2 1 1 . Device 1 | 1 . . . . Storage 2 | 1 1 . . . Processor . | . . . . . Hackware . | . . . . . Protection 3 | . 1 1 1 . Artifact . | . . . . . Weapon 8 | 2 2 3 1 . Energy Gun 3 | 1 1 1 . . Energy Cannon . | . . . . . Ballistic Gun 3 | 1 . 1 1 . Ballistic Cannon . | . . . . . Launcher 1 | . . 1 . . Special Weapon . | . . . . . Impact Weapon 1 | . 1 . . . Slashing Weapon . | . . . . . Piercing Weapon . | . . . . . Special Melee Weapon . | . . . . . Unidentified Prototypes . | . . . . . Parts Lost 11 | . 3 4 4 . Power 3 | . 1 1 1 . Propulsion 4 | . 1 1 2 . Utility 1 | . . 1 . . Weapon 3 | . 1 1 1 . Highest Loss Streak 3 | . 3 2 3 . To Critical Strikes . | . . . . . Average Backups 16 | 3 11 17 18 18 Power . | . . . . 1 Propulsion 3 | 2 4 3 2 2 Utility 9 | . 4 10 11 11 Weapon 2 | . 1 2 2 3 Tool/Special . | . . . . . Unused Backups 18 | . 2 . 1 15 Power 1 | . . . . 1 Propulsion 4 | . 2 . . 2 Utility 11 | . . . 1 10 Weapon 1 | . . . . 1 Tool/Special 1 | . . . . 1 Average Slot Usage (%) 99 | . 99 98 99 100 Engine 11 | . 14 13 8 . Core 2 | . . . 5 14 Treads 12 | . 5 13 14 14 Wheel 15 | . 22 14 14 14 Device 4 | . 2 5 4 14 Storage 14 | . 14 14 14 14 Protection 8 | . 11 8 9 . Energy Gun 11 | . 13 13 8 . Ballistic Gun 14 | . 13 12 15 28 Impact Weapon 1 | . . 1 2 . Peak Build Rating 14 | 7 8 12 14 14 Average Rating 10 | 5 7 10 12 14 On Entrance 8 | . 7 8 12 14 Avg Prop Armor Cover (%) 13 | . 14 13 13 13 Naked Turns . | . . . . . Heaviest Build 53 | 12 48 50 53 51 Greatest Support 26 | 26 26 16 16 10 Greatest Overweight (x) 5 | . 2 3 5 5 Average Overweight (x) 2 | . 1 2 3 5 Largest Inventory Capacity 20 | 8 20 20 20 20 Average Capacity 19 | 7 19 20 20 20 Most Carried 20 | 7 15 20 20 19 Average Carried 17 | 4 11 18 19 19 Final Capacity 20 | 8 20 20 20 20 Final Carried 20 | 7 15 20 19 19 Class Distribution -------------------- 88% | Mutant 11% | Scavenger-Mutant Dominant Class ---------------- Mutant | -10/Materials Mutant | -10/Mines Mutant | -10/Subcaves Mutant | -9/Recycling Resources | -11 -10 -10 -10 -9 ----------- Run | Yrd Mat Min Sub Rec Matter Collected 798 | 275 103 169 251 . Remotely . | . . . . . Salvage Created 905 | 119 442 175 169 . Parts 79 | 11 33 25 10 . Haulers Intercepted . | . . . . . Recyclers Shooed 1 | 1 . . . . Parts Field Recycled . | . . . . . Retrieved Matter . | . . . . . Parts Self-Destructed 14 | . . . 14 . Prevented . | . . . . . Parts Restored . | . . . . . Kills | -11 -10 -10 -10 -9 ------- Run | Yrd Mat Min Sub Rec Combat Hostiles Destroyed 29 | . 11 13 5 . Melee 1 | . . . 1 . Guns 20 | . 10 6 4 . AOE 6 | . . 6 . . Classes Destroyed 9 | 2 4 . 3 . Tunneler 4 | 3 . 1 . . Recycler 2 | 1 1 . . . Operator 1 | . 1 . . . Turret 2 | . . . 2 . Watcher 1 | . 1 . . . Swarmer 19 | . 6 11 2 . Grunt 8 | . 5 2 1 . Sentry 1 | . . . 1 . Subdweller 1 | . . . 1 . Best Kill Streak 4 | 4 3 4 3 . Combat Bots Only 3 | . 3 3 3 . Max Kills in Single Turn 2 | 1 1 2 1 . Gunslinging . | . . . . . Exploded 2 | . . 2 . . Melee 1 | . . . 1 . Uniques/NPCs Destroyed . | . . . . . Combat | -11 -10 -10 -10 -9 -------- Run | Yrd Mat Min Sub Rec Hostile Shots Fired 157 | . 49 55 49 4 Missed 44 | . 12 14 17 1 Hits 113 | . 37 41 32 3 Projectile 113 | . 37 41 32 3 Critical Strikes 1 | . . 1 . . Damage Taken 1378 | . 397 439 502 40 Core 258 | . 81 58 107 12 Absorbed by Shields . | . . . . . Redirected to Shielding 28 | . 15 4 9 . Core Remaining (%) 100 | 100 . . . . Volleys Fired 98 | 11 34 23 29 1 Largest 2 | 2 2 2 2 2 Hottest 85 | 70 70 85 85 50 Shots Fired 168 | 22 65 36 43 2 Gun 150 | 22 65 32 29 2 Cannon . | . . . . . Launcher 18 | . . 4 14 . Special . | . . . . . Kinetic 82 | 11 34 12 23 2 Thermal 68 | 11 31 20 6 . Explosive 18 | . . 4 14 . Electromagnetic . | . . . . . Robot Hit Streak 10 | 6 10 7 8 10 Robot Miss Streak 4 | 3 2 3 4 . Penetration Max . | . . . . . Secondary Targets . | . . . . . Shots Hit Robots 107 | 13 43 24 25 2 Core Hits 67 | 5 24 15 23 . Critical Kills . | . . . . . Critical Parts Destroyed 2 | . 1 1 . . Critical Strikes 2 | . 1 1 . . Smash 2 | . 1 1 . . Melee Attacks 25 | . 8 5 12 . Impact 25 | . 8 5 12 . Slashing . | . . . . . Piercing . | . . . . . Sneak Attacks . | . . . . . Combat Hostiles . | . . . . . Follow-up Attacks . | . . . . . Damage Inflicted 2037 | 141 533 765 566 32 Guns 1029 | 141 388 203 265 32 Cannons . | . . . . . Explosions 624 | . . 408 216 . Melee 384 | . 145 154 85 . Ramming . | . . . . . Kinetic 469 | 53 127 55 202 32 Thermal 560 | 88 261 148 63 . Explosive 624 | . . 408 216 . Electromagnetic . | . . . . . Impact 384 | . 145 154 85 . Slashing . | . . . . . Piercing . | . . . . . Highest Corruption . | . . . . . Average Corruption . | . . . . . Corruption Purged . | . . . . . Corruption Blocked . | . . . . . Overload Shots . | . . . . . Overflow Damage 80 | . 20 56 4 . Projectiles . | . . . . . Explosions 32 | . . 28 4 . Melee 48 | . 20 28 . . Knockbacks 1 | . . 1 . . Impact 1 | . . 1 . . Kinetic . | . . . . . Secondary . | . . . . . Self-Inflicted Damage . | . . . . . Shots . | . . . . . Rammed . | . . . . . Targets Rammed . | . . . . . Kicked . | . . . . . Crushed . | . . . . . Highest Temperature 172 | 140 124 172 16 7 Average Temperature 51 | 63 39 67 10 7 Received Heat Transfer 447 | . 147 162 129 9 Siege Activations . | . . . . . Martial Activations . | . . . . . Shielding Activations . | . . . . . Robots Disrupted . | . . . . . Combat Hostiles . | . . . . . Robots Corrupted 2 | . 1 1 . . Combat Hostiles 2 | . 1 1 . . Parts Fried . | . . . . . Impact Corruptions 2 | . 1 1 . . Robots Melted . | . . . . . Combat Hostiles . | . . . . . Parts Melted 1 | . 1 . . . Heat Transferred 1472 | 259 718 347 148 . Parts Sabotaged . | . . . . . Parts Stolen . | . . . . . Parts Stripped . | . . . . . Power Chain Reactions . | . . . . . Alert | -11 -10 -10 -10 -9 ------- Run | Yrd Mat Min Sub Rec Maximum Alert Level . | . . . . . Low Security (%) 100 | 100 100 100 . 100 Level 1 . | . . . . . Level 2 . | . . . . . Level 3 . | . . . . . Level 4 . | . . . . . Level 5 . | . . . . . High Security . | . . . . . Max Security . | . . . . . Peak Influence 104 | 10 104 98 . 87 Initial 87 | . 3 30 . 87 Average 42 | 2 57 36 . 48 Influence Increases 1377 | 20 380 401 576 . Destroy 0b10 Robot/C 660 | . 220 260 180 . Destroy 0b10 Robot/NC 40 | 20 15 5 . . Destroy Leader 102 | . 52 50 . . Allied During Kill 17 | . . 11 6 . Successful Hack 18 | . 18 . . . Select Force Hacks 30 | . 30 . . . Destroy Structure 30 | . . 30 . . Lose Combat Pursuer 480 | . 45 45 390 . Influence Decreases 1370 | 15 306 459 415 175 Entered New Map 158 | . 2 49 12 95 Time Decay 1067 | 15 279 370 323 80 Lost Part 105 | . 25 40 40 . Lost Ally 40 | . . . 40 . Squads Dispatched 2 | . 2 . . . Investigation 1 | . 1 . . . Extermination . | . . . . . Reinforcement 1 | . 1 . . . Assault . | . . . . . Garrison . | . . . . . Intercept . | . . . . . Searches Triggered . | . . . . . Construction Impeded . | . . . . . Haulers Reinforced . | . . . . . Active Scanning Responses . | . . . . . Cargo Convoy Interrupts . | . . . . . Stealth | -11 -10 -10 -10 -9 --------- Run | Yrd Mat Min Sub Rec Distress Signals 3 | . 2 1 . . Communications Jammed . | . . . . . Distress Signals . | . . . . . Times Spotted 58 | . 19 16 22 1 Peak Tracking Total 6 | . 3 3 6 1 Tactical Retreats 10 | . 2 2 6 . Traps | -11 -10 -10 -10 -9 ------- Run | Yrd Mat Min Sub Rec Traps Triggered 3 | . 1 . 2 . Indirectly . | . . . . . Trap Hack Attempts . | . . . . . Triggered . | . . . . . Disarmed . | . . . . . Reprogrammed . | . . . . . Reused . | . . . . . Traps Extracted . | . . . . . Installed . | . . . . . Triggered . | . . . . . Machines | -11 -10 -10 -10 -9 ---------- Run | Yrd Mat Min Sub Rec Machines Disabled 3 | . . . 3 . Max in Single Turn 1 | . . . 1 . Machines Repaired . | . . . . . Machines Dismantled . | . . . . . Machines Sabotaged . | . . . . . Overloaded Fab Kills . | . . . . . Hacking | -11 -10 -10 -10 -9 --------- Run | Yrd Mat Min Sub Rec Machines Accessed 7 | . 7 . . . Terminals 6 | . 6 . . . Fabricators . | . . . . . Repair Stations . | . . . . . Recycling Units 1 | . 1 . . . Scanalyzers . | . . . . . Garrison Access . | . . . . . Total Hacks 21 | . 21 . . . Successful 9 | . 9 . . . Failed 12 | . 12 . . . Catastrophic . | . . . . . Database Lockouts . | . . . . . Manual 20 | . 20 . . . Terminals 19 | . 19 . . . Fabricators . | . . . . . Repair Stations . | . . . . . Recycling Units 2 | . 2 . . . Scanalyzers . | . . . . . Garrison Access . | . . . . . Terminal Hacks . | . . . . . Fabricator Hacks . | . . . . . Repair Station Hacks . | . . . . . Recycling Unit Hacks . | . . . . . Scanalyzer . | . . . . . Garrison Access Hacks . | . . . . . Unauthorized Hacks 9 | . 9 . . . Terminals 8 | . 8 . . . Botnet 3 | . 3 . . . Skim 5 | . 5 . . . Fabricators . | . . . . . Repair Stations . | . . . . . Recycling Units 1 | . 1 . . . Tunnel 1 | . 1 . . . Scanalyzers . | . . . . . Garrison Access . | . . . . . Data Cores Recovered . | . . . . . Used . | . . . . . Hacking Detections 6 | . 6 . . . Full Trace Events 1 | . 1 . . . Feedback Events . | . . . . . Feedback Blocked . | . . . . . Robot Schematics Acquired . | . . . . . Robots Built . | . . . . . Authchips . | . . . . . Time . | . . . . . Total Robot Build Rating . | . . . . . Part Schematics Acquired . | . . . . . Parts Built . | . . . . . Authchips . | . . . . . Time . | . . . . . Total Part Build Rating . | . . . . . Part Studies Acquired . | . . . . . Parts Repaired . | . . . . . Time . | . . . . . Parts Recycled . | . . . . . Recycled Matter . | . . . . . Retrieved Matter . | . . . . . Retrieved Components . | . . . . . Parts Scanalyzed . | . . . . . Part Schematics Acquired . | . . . . . Parts Damaged . | . . . . . Bothacking | -11 -10 -10 -10 -9 ------------ Run | Yrd Mat Min Sub Rec Used RIF Installer . | . . . . . Robots Hacked . | . . . . . Non-combat . | . . . . . Combat . | . . . . . Robot Hacks Applied . | . . . . . Relay Couplers Released . | . . . . . Fabnet Peak Effective % . | . . . . . Robots Rewired . | . . . . . Allies Hacked . | . . . . . Hacks Repelled . | . . . . . Allies | -11 -10 -10 -10 -9 -------- Run | Yrd Mat Min Sub Rec Total Allies 3 | . . 3 . . Largest Group 3 | . . 3 3 . Highest-Rated Group 40 | . . 40 40 . Highest-Rated Ally 16 | . . 16 16 . Total Orders . | . . . . . Ally Attacks 7 | . . . 7 . Total Damage 57 | . . . 57 . Kills 3 | . . . 3 . Allies Corrupted . | . . . . . Allies Melted . | . . . . . Intel | -11 -10 -10 -10 -9 ------- Run | Yrd Mat Min Sub Rec Active Infowar (turns) 1087 | 19 98 432 365 173 Seismic 1087 | 19 98 432 365 173 Robot Analysis Total . | . . . . . Derelict Logs Recovered 2 | . . 1 1 . Drone Launches . | . . . . . Drone Recoveries . | . . . . . Exploration | -11 -10 -10 -10 -9 ------------- Run | Yrd Mat Min Sub Rec Turns Passed 3260 | 96 621 1191 1179 173 Spaces Moved 2094 | 54 398 818 723 101 Core 4 | 4 . . . . Treads . | . . . . . Legs . | . . . . . Wheels 2090 | 50 398 818 723 101 Hover . | . . . . . Flight . | . . . . . Fastest Speed 50 | 50 90 130 130 155 Average Speed 131 | 86 114 130 142 155 Slowest Speed 155 | 90 130 145 155 155 Overloaded Moves . | . . . . . Propulsion Burnouts . | . . . . . Robots Hopped . | . . . . . Potential Cave-ins . | . . . . . Cave-ins Triggered . | . . . . . Exploration Rate (%) 46 | 4 71 99 31 25 Regions Visited 4 Branch Regions 3 Pre-discovered Areas 2 | . 1 1 . . Known Exits Taken 1 | . . . 1 . Unknown Exits Taken 3 | 1 1 1 . . Scrap Searched 3 | . . 1 2 . Spaces Dug 1 | . . . 1 . Terrain Destroyed 58 | . . 39 19 . Melee 1 | . . . 1 . Projectile . | . . . . . AOE 57 | . . 39 18 . Terrain Rammed . | . . . . . Walls Destroyed . | . . . . . Machines Disabled . | . . . . . Actions | -11 -10 -10 -10 -9 --------- Run | Yrd Mat Min Sub Rec Total 2385 | 80 490 892 806 117 Wait 93 | . 29 25 24 15 Move 2090 | 53 397 817 722 101 Hop . | . . . . . Pick Up 34 | 8 12 8 6 . Fast Attach 9 | 7 1 1 . . Attach 10 | . 3 3 4 . Detach . | . . . . . Swap 19 | . 4 9 6 . Drop 7 | 1 2 1 3 . Fire 98 | 11 34 23 29 1 Melee 25 | . 8 5 12 . Ram . | . . . . . Kick . | . . . . . Crush . | . . . . . Escape Stasis . | . . . . . Rewire . | . . . . . Trap . | . . . . . Miscellaneous . | . . . . . Route ------- -11/Scrapyard -10/Materials (discovered 2 exits: [*Mat] / [*Min]) -10/Mines (discovered 4 exits: [*Mat x2] / [*Exi] / [*Sub]) -10/Subcaves (discovered 2 exits: [*Mat] / *Rec) -9/Recycling History --------- Turn | Location | Event 22 | -11/Scrapyard | Discovered new exit (range 14) 97 | -11/Scrapyard | Entered Materials 313 | -10/Materials | Build established: Mutant 355 | -10/Materials | Discovered new exit (range 13) 493 | -10/Materials | Lost 3 parts (1p1n1w) 664 | -10/Materials | Discovered new exit (range 12) 686 | -10/Materials | Learned 4 Recycling zone layouts 718 | -10/Materials | Entered Mines 719 | -10/Mines | Assembled infested the area 724 | -10/Mines | Assisted by a Guerilla fighting off Assembled 1262 | -10/Mines | Discovered new exit (range 9) 1310 | -10/Mines | Discovered new exit (range 10) 1334 | -10/Mines | Build established: Scavenger-Mutant 1359 | -10/Mines | Learned Materials stockpile data 1421 | -10/Mines | Found a damaged Exp. Sensor Array with a note attached 1424 | -10/Mines | Found Prototype Device 1443 | -10/Mines | Found a Scrap Suit stashed away for nefarious purposes 1449 | -10/Mines | Found Scrap Suit 1552 | -10/Mines | Assisted by bots powering up and referring to "LRC-V3" 1599 | -10/Mines | Learned location of Storage (-9) 1638 | -10/Mines | Found a hidden stash of uninstalled traps 1688 | -10/Mines | Discovered new exit (range 6) 1693 | -10/Mines | Build established: Mutant 1707 | -10/Mines | Core integrity fell below 50% 1855 | -10/Mines | Deemed a non-threat by the Exiles lab entrance 1856 | -10/Mines | Discovered new exit (range 5) 1909 | -10/Mines | Entered Subcaves 1909 | -10/Subcaves | Accompanied by 3 allies 1910 | -10/Subcaves | Approached by a straggling Scientist 1945 | -10/Subcaves | Discovered new exit (range 6) 2021 | -10/Subcaves | Identified exit to Recycling 2280 | -10/Subcaves | Lost 3 allies 2454 | -10/Subcaves | Core integrity fell below 20% 2603 | -10/Subcaves | Disturbed a concealed Subdweller 2676 | -10/Subcaves | Lost 3 parts (1p1n1w) 3088 | -10/Subcaves | Entered Recycling 3261 | -9/Recycling | Destroyed by Y-45 Defender with Heavy Assault Rifle Last Messages --------------- 02645_ Particle Gun destroyed. 02646_ Subatomizers dissect the Core Shielding. 02650_ 5L-3Y0(R) destroyed. 02653_ Acquired 52 matter. 02659_ Subatomizers dissect the Core Shielding. 02662_ Acquired Sub. Monowheel. 02665_ Acquired Sub. Power Source. 02669_ Subatomizers dissect the Core Shielding. 02746_ Acquired 11 matter. 02763_ S-10 Pest destroyed. 02782_ G-34 Mercenary destroyed. 02789_ Aluminum Leg fries itself beyond repair. 02790_ Y-45 Defender destroyed. 02793_ Acquired 51 matter. 02798_ Heat Sink fries itself beyond repair. 02801_ Lgt. Treads fries itself beyond repair. LOCATION=RECYCLING GOAL=ESCAPE Loading 4 Recycling zones... 03246_ Y-45 Defender springs to life. Map ----- +----------------------------------------------------+ | | | | | | | | | | | | | ?????????????????????????????????????????????????? | | ?????????????????????????????????????????????????? | | ?????????????????????????????????????????????????? | | ?????????????????????????????????????????????????? | | ?????????????????????????????????????????????????? | | ?????????????????????????????????????????????????? | | ?????????????????????????????????????????????????? | | ?????????????????????????????????????????????????? | | ?????????????????????????????????????????????????? | | ?????????????????????????????????????????????????? | | ?????????????????????????????????????????????????? | | ?????????????????????????????????????????????????? | | ?????????????????????????????????????????????????? | | ?????????????????????????????????????????????????? | | ?????????????????????????????????????????????????? | | ?????????"??????###?#???##########???????????????? | | ?????????"" ##### # #???# #???????????????? | | ?????????"" + #???# """ #???????????????? | | ????????????# #???# """ #???????????????? | | ############# #####@ """ #???????????????? | | Y #???????????????? | | ##### ########### # """ #???????????????? | | #####+########??# # """ #???????????????? | | / #??# # """ ????????????????? | | #!!!### #??# # ????????????????? | | #!! #?# #??# ##########???????????????? | | #####?# #??# #????????????????????????? | | #?????# #??# #????????????????????????? | | ??????# #### ##???????????????????????? | | ??????# # #???????????????????????? | | ??????# # #???????????????????????? | | ??????# + #???????????????????????? | | ??????# # #???????????????????????? | | ??????# # #???????????????????????? | | ??????# ## ##???????????????????????? | | ??????######## ###### #????????????????????????? | | ?????????????###????# #????????????????????????? | | ????????????????????# #????????????????????????? | | ????????????????????# #????????????????????????? | | ????????????????????# #????????????????????????? | | ????????????????????# #????????????????????????? | | ????????????????????# #????????????????????????? | | ????????????????????# #??###???????????????????? | | ????????????????????# #### ######??????????????? | +----------------------------------------------------+ Best States ------------- Heat Dissipation 25 Energy Generation 14 Energy Capacity 160 Matter Stores 300 Matter Capacity 300 Sight Range 16 Terrain Scan Density 10 Armor Coverage 150 Core Shielding 20 Evasion (%) 44 Recoil Reduction 1 Item Schematics ----------------- None Robot Schematics ------------------ None Fabricated ------------ Nothing Repaired ---------- Nothing Studied --------- None Alien Tech Used ----------------- None Achievements -------------- None Challenges ------------ None Game ------ Seed FlyingBiometalTether Manual? 0 Play Time 00:23:30 Cumulative 107.0 hours Start 2025.10.27 @ 12:13:04 End 2025.10.27 @ 13:16:36 Sessions 1 Manual Loads 0 Difficulty Rogue Special Mode None Game No. 176 Rogue 148 Adventurer 28 Explorer 0 Win Type - Total 0 Types 0/0/0/0/0/0/0/0/0/0 Lore% 44 Gallery% 32 Achievement% 24 Wizard Run 0 Options --------- Layout 0 ASCII 0 Keyboard 1 Movement Numpad Keybinds 0 Fullscreen 2 Font 28/SmallcapsGlow Map View 84x54 Zoom Use 0% Tactical HUD 1 Map Filters NONE Filters NONE Steam 1 RUN: 1bafc054-b47f-4c9e-9793-cc61e954abdf